bitfinex-derivatives/quotes_ETHF0:USTF0_20250320
["timestamp","ask_amount","ask_price","bid_price","bid_amount"]
[1742477729650,3.2078,1992.6,1992.5,1.00414]
[1742477729854,1.4098,1992.6,1992.5,1.00414]
[1742477730253,0.66772464,1992.7,1992.6,1.00409]
[1742477730453,0.00752464,1992.7,1992.6,1.00409]
[1742477730862,0.6451,1993.1,1992.6,1.00409]
[1742477731060,0.6451,1993.1,1993.0,1.00389]
[1742477731360,2.41362,1993.2,1993.0,1.00389]
[1742477731752,2.41362,1993.2,1993.1,1.4199]
[1742477732257,1.4098,1993.2,1993.1,2.42374]
[1742477732451,4.21909464,1993.3,1993.1,1.4199]
[1742477732658,5.56149464,1993.3,1993.2,1.4199]
[1742477733054,0.00752464,1993.3,1993.2,2.42369]
[1742477734463,1.01126464,1993.3,1993.2,1.4199]
[1742477734664,2.42576464,1993.3,1993.2,1.4199]
[1742477735057,0.00752464,1993.3,1993.2,2.42369]
[1742477735356,3.2078,1994.0,1993.6,1.00356]
[1742477735561,1.00349,1993.8,1993.7,1.3556]
[1742477735859,4.21129,1993.8,1993.7,1.3556]
[1742477736066,1.00365,1993.5,1993.3,4.8678]
[1742477736358,1.00362,1993.6,1993.4,2.35929]
[1742477736560,1.01114464,1993.6,1993.4,1.3556]
[1742477736758,1.4145,1993.5,1993.3,3.2078]
[1742477736965,1.4145,1993.5,1993.1,4.8146]
[1742477737156,1.00377,1993.3,1993.2,1.3556]
[1742477737668,2.37277,1993.3,1993.2,1.3556]
[1742477738959,2.37277,1993.3,1993.2,2.35939]
[1742477739157,2.37277,1993.3,1993.2,1.3556]
[1742477739552,1.00384,1993.1,1993.0,0.00752464]
[1742477739760,1.00384,1993.1,1993.0,2.30831464]
[1742477739955,1.00384,1993.1,1993.0,1.30442464]
[1742477740468,1.00384,1993.1,1993.0,2.30831464]
[1742477740764,1.00384,1993.1,1993.0,1.30442464]
[1742477740965,1.00384,1993.1,1993.0,2.30831464]
[1742477741160,1.00384,1993.1,1993.0,1.30442464]
[1742477741659,4.21164,1993.1,1993.0,0.00752464]
[1742477742466,6.24234,1993.1,1993.0,0.00752464]
[1742477744262,1.00384,1993.1,1993.0,0.00752464]
[1742477744569,5.53958,1993.3,1993.2,1.00379]
[1742477744772,5.53957,1993.3,1993.2,1.00379]
[1742477744966,1.00379,1993.2,1993.1,2.96891]
[1742477745270,5.53958,1993.3,1993.2,1.00379]
[1742477745471,5.53958,1993.3,1993.2,2.31279]
[1742477746156,1.00384,1993.1,1993.0,0.00752464]
[1742477746362,1.00384,1993.1,1993.0,1.01141464]
[1742477746968,1.00384,1993.1,1993.0,0.00752464]
[1742477749472,1.00384,1993.1,1993.0,1.40642464]
[1742477750671,15.1418,1993.1,1992.2,44.0078]
[1742477750867,1.00416,1992.5,1992.4,1.00414]
[1742477751966,1.00419,1992.4,1992.3,2.36603464]
[1742477752171,1.00419,1992.4,1992.3,1.36182464]
[1742477752374,1.00419,1992.4,1992.3,2.36606464]
[1742477752567,1.00419,1992.4,1992.3,1.36182464]
[1742477752768,4.21199,1992.4,1992.3,0.00752464]
[1742477753067,7.68199,1992.4,1992.3,0.00752464]
[1742477753268,5.85059,1992.4,1992.3,1.01176464]
[1742477753577,5.85059,1992.4,1992.3,1.32532464]
[1742477754071,5.85059,1992.4,1992.3,0.00752464]
[1742477754769,1.00434,1992.1,1992.0,1.3178]
[1742477754971,1.00449,1991.8,1991.7,53.0608]
[1742477755170,1.00449,1991.8,1991.7,91.39331]
[1742477755367,1.00449,1991.8,1991.7,90.3888]
[1742477755671,1.00449,1991.8,1991.7,87.181]
[1742477756369,1.00486,1991.2,1991.1,1.0048]
[1742477756569,1.00477,1991.3,1991.2,2.32476]
[1742477756873,1.00477,1991.3,1991.2,42.12]
[1742477757062,1.00477,1991.3,1991.2,1.32]
[1742477757264,1.00477,1991.3,1990.9,0.6901]
[1742477757265,1.0049,1991.0,1990.9,0.6901]
[1742477757470,3.2078,1991.4,1991.1,0.00752464]
[1742477757677,1.00475,1991.3,1991.1,40.80752464]
[1742477757875,1.0048,1991.2,1991.1,40.80752464]
[1742477758077,1.0048,1991.2,1991.1,42.12752464]
[1742477758275,1.32272464,1991.4,1991.1,43.13233464]
[1742477758575,1.32272464,1991.4,1991.2,2.32478]
[1742477758766,1.00475,1991.3,1991.2,1.32]
[1742477758968,1.00475,1991.3,1991.2,2.3248]
[1742477759276,1.01225464,1991.4,1991.3,1.00475]
[1742477759573,1.01225464,1991.4,1991.2,2.32478]
[1742477759574,1.00475,1991.3,1991.2,2.32478]
[1742477760270,1.00475,1991.3,1991.2,2.32477]
[1742477760573,1.00475,1991.3,1991.2,1.32]
[1742477761272,1.0048,1991.2,1991.1,40.80752464]
[1742477761477,1.6557,1991.2,1991.1,40.80752464]
[1742477761773,1.005,1990.8,1990.7,47.39103]
[1742477762277,2.51252,1990.8,1990.4,0.58683]
[1742477762472,1.00515,1990.5,1990.4,0.58683]
[1742477762677,1.00515,1990.5,1990.4,1.59203]
[1742477762874,3.481,1990.7,1990.4,41.38683]
[1742477763069,3.481,1990.7,1990.4,0.58683]
[1742477763070,1.00515,1990.5,1990.4,0.58683]
[1742477763273,1.0052,1990.4,1990.3,0.00501643]
[1742477763481,1.0052,1990.4,1989.8,1.3189]
[1742477763482,1.00545,1989.9,1989.8,1.3189]
[1742477764077,1.00545,1989.9,1989.8,2.3244]
[1742477764274,1.3965,1990.1,1989.8,4.5267]
[1742477764579,0.00752464,1990.1,1990.0,4.2132]
[1742477764768,3.8587,1990.6,1990.3,1.00523]
[1742477764974,1.00515,1990.5,1990.4,1.3639]
[1742477765176,1.9919,1990.6,1990.4,2.36905]
[1742477765367,1.9919,1990.6,1990.4,1.3639]
[1742477765568,1.00515,1990.5,1990.4,1.3639]
[1742477765782,1.00515,1990.5,1990.4,2.3691]
[1742477766085,1.00515,1990.5,1990.4,42.1639]
[1742477766778,3.21532464,1990.6,1990.4,42.1639]
[1742477767080,0.00752464,1990.6,1990.4,42.1639]
[1742477767276,0.00752464,1990.6,1990.5,1.00515]
[1742477767473,1.00488,1991.1,1991.0,1.00488]
[1742477767684,8.6852,1991.4,1990.9,3.2078]
[1742477767876,1.00461,1991.6,1991.5,1.0046]
[1742477768079,4.21238,1991.7,1991.6,1.00459]
[1742477768277,9.85596,1991.9,1991.4,2.51173]
[1742477768278,10.5526,1991.9,1991.4,2.51173]
[1742477768480,1.00453,1991.8,1991.7,1.00452]
[1742477768683,1.01205464,1991.8,1991.7,1.00452]
[1742477768880,1.00457,1991.7,1991.6,1.00456]
[1742477769273,1.00459,1991.6,1991.5,0.00752464]
[1742477769584,2.51162,1991.5,1990.9,53.8285]
[1742477769884,1.00485,1991.1,1991.0,40.8]
[1742477770482,1.00485,1991.1,1991.0,1.0049]
[1742477770873,1.0049,1991.0,1990.9,53.83602464]
[1742477771081,1.0049,1991.0,1990.9,50.62822464]
[1742477771271,1.0049,1991.0,1990.9,46.42452464]
[1742477771477,1.0049,1991.0,1990.9,47.42947464]
[1742477771671,1.0049,1991.0,1990.9,46.42452464]
[1742477771976,1.0049,1991.0,1990.9,0.00752464]
[1742477772171,2.4301,1991.0,1990.9,0.00752464]
[1742477773678,2.4301,1991.0,1990.9,1.01247464]
[1742477774088,1.0049,1991.0,1990.9,0.00752464]
[1742477774280,2.4238,1991.0,1990.9,0.00752464]
[1742477774481,1.0049,1991.0,1990.9,0.00752464]
[1742477775589,2.4238,1991.0,1990.9,0.00752464]
[1742477777382,3.1272,1991.0,1990.9,0.00752464]
[1742477777583,2.4238,1991.0,1990.9,0.00752464]
[1742477777989,1.0049,1991.0,1990.9,1.01247464]
[1742477778490,6.96488,1991.1,1991.0,1.0049]
[1742477778891,2.33333,1991.2,1991.1,1.00485]
[1742477779082,1.00478,1991.3,1991.2,1.00475]
[1742477779392,5.02237,1991.9,1991.2,1.00475]
[1742477779393,1.00457,1991.7,1991.6,1.00454]
[1742477779780,0.00752464,1991.8,1991.7,1.00454]
[1742477779986,1.01201464,1991.8,1991.7,1.00454]
[1742477780488,0.00752464,1991.8,1991.7,1.00454]
[1742477780788,0.00752464,1991.8,1991.7,4.21234]
[1742477780986,0.00752464,1991.8,1991.7,1.00454]
[1742477781192,1.01201464,1991.8,1991.7,1.3691]
[1742477781388,1.00459,1991.6,1991.5,1.00463]
[1742477781984,1.00463,1991.6,1991.5,1.00461]
[1742477782788,2.30388,1991.7,1991.6,1.00459]
[1742477782988,0.00752464,1991.8,1991.7,1.00454]
[1742477783382,1.0043,1992.2,1992.1,1.00434]
[1742477783585,1.2914,1992.6,1992.0,44.0078]
[1742477783894,1.00416,1992.5,1992.2,3.2078]
[1742477784093,1.00416,1992.5,1992.4,1.00419]
[1742477784488,1.00416,1992.5,1992.3,1.3485]
[1742477784489,1.2914,1992.6,1992.3,2.35271]
[1742477784688,1.29892464,1992.6,1992.3,2.36023464]
[1742477784888,1.00414,1992.5,1992.4,1.3485]
[1742477785691,1.29892464,1992.6,1992.4,1.3485]
[1742477785889,1.00414,1992.5,1992.4,1.3485]
[1742477786393,1.00414,1992.5,1992.3,0.00752464]
[1742477786394,1.00419,1992.4,1992.3,0.00752464]
[1742477786593,2.98649,1992.4,1992.3,0.00752464]
[1742477789293,2.98649,1992.4,1992.0,46.414]
[1742477789485,2.51099,1992.0,1991.5,49.9]
[1742477789692,1.00454,1991.7,1991.6,1.34]
[1742477791700,1.00459,1991.6,1991.5,0.00752464]
[1742477792000,2.35539,1991.6,1991.5,0.00752464]
[1742477793003,1.00485,1991.1,1991.0,46.408]
[1742477793198,1.00485,1991.1,1991.0,47.7682]
[1742477793408,1.00485,1991.1,1991.0,1.3602]
[1742477793902,2.32285,1991.1,1991.0,1.3602]
[1742477794297,1.00485,1991.1,1991.0,2.3651]
[1742477794493,1.00485,1991.1,1991.0,1.3602]
[1742477794797,0.00752464,1991.2,1991.0,1.3602]
[1742477794798,1.01234464,1991.2,1991.0,1.3602]
[1742477794997,1.00485,1991.1,1991.0,1.3602]
[1742477795197,1.01235464,1991.2,1991.1,1.00485]
[1742477795398,0.00752464,1991.2,1991.1,1.00485]
[1742477795798,0.00752464,1991.2,1991.1,1.69465]
[1742477797200,0.00752464,1991.2,1991.1,1.00485]
[1742477797500,0.00752464,1991.2,1991.0,2.36506]
[1742477797501,1.00485,1991.1,1991.0,2.36506]
[1742477797712,2.29165,1991.1,1991.0,1.3602]
[1742477798116,2.29165,1991.1,1991.0,2.3651]
[1742477798523,2.29165,1991.1,1991.0,1.3602]
[1742477798726,2.29165,1991.1,1991.0,2.3651]
[1742477799423,2.29165,1991.1,1991.0,1.3602]
[1742477800425,2.29165,1991.1,1991.0,2.3651]
[1742477800827,2.29165,1991.1,1991.0,1.3602]
[1742477801332,2.29165,1991.1,1991.0,2.3651]
[1742477801528,2.29165,1991.1,1991.0,1.3602]
[1742477802529,1.00504,1990.8,1990.7,1.00501]
[1742477803028,1.00505,1990.7,1990.6,1.67666]
[1742477803430,1.00503,1990.8,1990.7,1.00503]
[1742477803823,1.00503,1990.8,1990.7,1.4048]
[1742477804023,3.477,1991.0,1990.9,1.00495]
[1742477804230,1.00492,1991.0,1990.9,1.00495]
[1742477804424,1.00485,1991.1,1991.0,1.00485]
[1742477804736,0.00752464,1991.2,1991.1,1.00485]
[1742477805037,0.00752464,1991.2,1991.1,1.3701]
[1742477805331,1.01232464,1991.2,1991.1,2.37495]
[1742477806522,0.00752464,1991.2,1991.1,2.37495]
[1742477806733,0.00752464,1991.2,1991.1,3.07015]
[1742477808138,0.6553,1991.7,1991.2,2.512]
[1742477808434,1.00457,1991.7,1991.4,5.71943]
[1742477808638,1.00457,1991.7,1991.6,1.00454]
[1742477809339,1.00459,1991.6,1991.5,43.87593464]
[1742477810038,0.00752464,1991.8,1991.7,1.00454]
[1742477810238,0.00752464,1991.8,1991.7,7.68934]
[1742477810736,0.00752464,1991.8,1991.7,9.03494]
[1742477811130,1.01201464,1991.8,1991.7,9.03494]
[1742477811332,0.00752464,1991.8,1991.7,9.03494]
[1742477811735,1.01201464,1991.8,1991.7,5.82714]
[1742477811931,0.00752464,1991.8,1991.7,5.82714]
[1742477812537,1.01201464,1991.8,1991.7,5.82714]
[1742477812733,1.01201464,1991.8,1991.7,1.3456]
[1742477812935,1.00459,1991.6,1991.5,3.21532464]
[1742477813238,1.00459,1991.6,1991.5,0.00752464]
[1742477813434,4.47759,1991.6,1991.5,0.00752464]
[1742477813741,5.90139,1991.6,1991.5,0.00752464]
[1742477814248,1.0047,1991.4,1991.3,1.4013]
[1742477814642,2.42845,1991.6,1991.3,1.4013]
[1742477814941,6.96459,1991.7,1991.6,1.00459]
[1742477815134,8.38839,1991.7,1991.6,1.00459]
[1742477815940,1.00459,1991.6,1991.5,2.40591]
[1742477816642,2.42209,1991.6,1991.5,2.40591]
[1742477817341,5.96,1991.7,1991.6,1.00459]
[1742477817342,6.96458,1991.7,1991.6,1.00459]
[1742477817541,8.38208,1991.7,1991.6,1.00459]
[1742477818239,5.96,1991.7,1991.6,1.00459]
[1742477818443,0.00752464,1991.8,1991.7,1.00454]
[1742477818835,1.01201464,1991.8,1991.7,1.00454]
[1742477819036,1.01201464,1991.8,1991.7,1.3179]
[1742477819337,2.42951464,1991.8,1991.7,1.3179]
[1742477820246,2.42951464,1991.8,1991.3,9.1678]
[1742477820247,2.51144,1991.7,1991.3,9.1678]
[1742477820450,2.0737,1991.6,1991.3,10.5841]
[1742477820653,1.00467,1991.5,1991.4,2.42094]
[1742477820944,2.41877,1991.5,1991.4,2.42094]
[1742477821143,4.47761,1991.6,1991.5,1.00464]
[1742477821447,1.00461,1991.6,1991.5,1.4163]
[1742477822048,1.00457,1991.7,1991.5,1.4163]
[1742477822236,1.00457,1991.7,1991.6,1.00459]
[1742477822745,1.00459,1991.7,1991.6,1.00457]
[1742477823339,1.00459,1991.7,1991.6,1.00455]
[1742477824249,0.00752464,1991.8,1991.7,1.00454]
[1742477824450,0.00752464,1991.8,1991.7,4.21234]
[1742477824646,0.00752464,1991.8,1991.7,7.68234]
[1742477824841,3.04231,1992.2,1992.1,1.00434]
[1742477825042,1.0042,1992.4,1992.3,1.00424]
[1742477825647,1.00424,1992.3,1992.2,2.29509]
[1742477825838,2.35493,1992.4,1992.3,1.00424]
[1742477826150,1.00424,1992.3,1992.2,2.29506]
[1742477826349,1.3661,1992.3,1992.2,2.29506]
[1742477826746,0.00752464,1992.4,1992.2,1.2908]
[1742477827053,0.00752464,1992.4,1992.3,7.68104]
[1742477827243,1.3661,1992.9,1992.5,2.51032]
[1742477827444,1.3661,1992.9,1992.6,7.9869]
[1742477827445,1.00404,1992.8,1992.6,7.9869]
[1742477827737,1.00404,1992.8,1992.7,1.3071]
[1742477828544,1.00404,1992.8,1992.7,2.31114]
[1742477828747,1.00404,1992.8,1992.6,3.472]
[1742477829049,1.00416,1992.5,1992.3,6.96421]
[1742477829248,1.00419,1992.4,1992.3,2.34071]
[1742477829439,4.5531,1992.7,1992.2,3.474]
[1742477829440,3.2078,1992.5,1992.2,3.474]
[1742477829644,1.00419,1992.4,1992.3,1.00422]
[1742477829845,3.2078,1992.5,1992.3,1.00423]
[1742477830047,1.00424,1992.3,1992.2,4.8105]
[1742477830447,1.00424,1992.3,1992.2,1.3365]
[1742477830951,1.00429,1992.2,1992.1,0.00752464]
[1742477831139,1.00429,1992.2,1992.1,1.01183464]
[1742477831553,1.00429,1992.2,1992.1,0.00752464]
[1742477831944,2.35089,1992.2,1992.1,0.00752464]
[1742477832648,1.00449,1991.8,1991.7,2.41871]
[1742477832849,2.51087,1992.1,1991.7,2.41871]
[1742477832850,1.00447,1991.9,1991.7,2.41871]
[1742477833049,1.00449,1991.8,1991.7,2.41871]
[1742477833249,1.00448,1991.9,1991.8,1.00449]
[1742477834256,1.00449,1991.8,1991.7,2.42623464]
[1742477834754,1.00449,1991.8,1991.7,0.00752464]
[1742477837558,1.00475,1991.3,1991.2,3.2078]
[1742477837758,3.475,1991.6,1991.2,1.382]
[1742477837948,3.475,1991.6,1991.2,2.38678]
[1742477837949,1.00475,1991.3,1991.2,2.38678]
[1742477838150,1.00475,1991.3,1991.2,2.3868]
[1742477838352,1.00475,1991.3,1991.2,1.382]
[1742477838551,1.00472,1991.4,1991.3,1.00473]
[1742477838747,1.00475,1991.3,1991.2,1.382]
[1742477838958,1.00485,1991.1,1991.0,1.00488]
[1742477839154,1.00482,1991.2,1991.1,1.00485]
[1742477839354,1.00485,1991.1,1991.0,2.38688]
[1742477839658,0.7118,1991.3,1991.0,2.38688]
[1742477840165,1.0048,1991.2,1991.0,2.38685]
[1742477840456,1.00485,1991.1,1991.0,1.382]
[1742477840652,2.38885,1991.1,1991.0,1.382]
[1742477841058,1.384,1991.1,1991.0,2.3869]
[1742477841655,1.00485,1991.1,1991.0,1.382]
[1742477842553,1.0049,1991.0,1990.9,46.402]
[1742477842957,1.005,1990.8,1990.7,2.32852]
[1742477843162,2.36979,1990.9,1990.7,2.32852]
[1742477843551,1.005,1990.8,1990.7,1.3235]
[1742477843757,2.3698,1990.8,1990.7,1.3235]
[1742477844051,1.3648,1990.8,1990.7,2.32855]
[1742477844259,2.3698,1990.8,1990.7,2.32855]
[1742477844554,1.3648,1990.8,1990.4,46.411]
[1742477844754,1.00515,1990.5,1990.4,47.7045]
[1742477845861,1.00515,1990.5,1990.4,46.411]
[1742477848158,1.00515,1990.5,1990.4,47.8119]
[1742477848565,1.00515,1990.5,1990.4,48.8171]
[1742477848752,1.00515,1990.5,1990.4,47.8119]
[1742477850859,1.00515,1990.5,1990.4,48.8171]
[1742477851364,9.90112,1990.9,1990.4,47.8119]
[1742477851562,9.90112,1990.9,1990.4,51.2889]
[1742477851563,1.00515,1990.5,1990.4,51.2889]
[1742477851761,1.00514,1990.6,1990.5,1.00512]
[1742477851962,1.00514,1990.6,1990.5,2.31482]
[1742477852358,1.00514,1990.6,1990.5,1.3097]
[1742477853261,1.00514,1990.6,1990.5,2.31485]
[1742477853561,1.00514,1990.6,1990.5,1.3097]
[1742477854872,4.48014,1990.6,1990.5,1.3097]
[1742477855059,1.00515,1990.5,1990.4,46.411]
[1742477855265,1.0052,1990.4,1990.3,1.3252]
[1742477855466,1.00535,1990.1,1990.0,1.00537]
[1742477855662,1.00535,1990.1,1990.0,1.3252]
[1742477856363,2.38285,1990.1,1990.0,1.3252]
[1742477856960,1.3775,1990.1,1989.7,3.2078]
[1742477857165,1.0055,1989.8,1989.7,1.00554]
[1742477857369,1.00555,1989.7,1989.6,1.66037]
[1742477857567,1.00555,1989.7,1989.6,0.6548]
[1742477858159,3.473,1989.7,1989.1,4.21363]
[1742477858369,3.473,1989.7,1988.8,3.8938]
[1742477858370,3.2078,1989.3,1988.8,3.8938]
[1742477858579,1.00588,1989.1,1988.9,1.00592]
[1742477858959,2.38335,1989.2,1988.9,1.00592]
[1742477859157,1.00587,1989.1,1988.9,1.00592]
[1742477859369,2.39086464,1989.2,1988.8,3.8938]
[1742477859574,0.00752464,1989.2,1989.1,1.00586]
[1742477860459,1.01335464,1989.2,1989.0,3.2078]
[1742477860665,0.00752464,1989.2,1989.1,1.00586]
[1742477860967,0.00752464,1989.2,1989.1,1.69116]
[1742477861473,1.01333464,1989.2,1989.1,1.69116]
[1742477861669,0.00752464,1989.2,1989.1,1.69116]
[1742477861870,1.01333464,1989.2,1989.1,0.6853]
[1742477862373,0.00752464,1989.2,1989.1,1.69116]
[1742477863266,1.01333464,1989.2,1989.1,0.6853]
[1742477864371,1.01333464,1989.2,1989.0,1.00587]
[1742477864569,1.3967,1989.1,1989.0,1.00587]
[1742477864968,1.01333464,1989.2,1989.1,1.00586]
[1742477865171,0.00752464,1989.2,1989.1,1.00586]
[1742477865370,1.01333464,1989.2,1989.1,1.00586]
[1742477865568,0.00752464,1989.2,1989.1,1.00586]
[1742477867068,3.478,1989.7,1989.5,1.00561]
[1742477867372,1.0056,1989.7,1989.3,6.6878]
[1742477867568,0.6636,1989.8,1989.4,0.6525]
[1742477867775,1.00565,1989.6,1989.4,48.11618]
[1742477867968,1.00565,1989.5,1989.4,46.458]
[1742477868967,2.43275,1989.5,1989.4,46.458]
[1742477870475,1.00571,1989.4,1989.3,0.00752464]
[1742477870672,2.43281,1989.4,1989.3,0.00752464]
[1742477870870,3.12221,1989.4,1989.3,0.00752464]
[1742477871068,3.12221,1989.4,1988.8,0.6891]
[1742477871069,1.00596,1988.9,1988.8,0.6891]
[1742477871276,3.476,1989.2,1988.8,2.0261]
[1742477871476,1.00592,1989.0,1988.9,1.00591]
[1742477871776,1.3319,1989.1,1989.0,1.00591]
[1742477871777,2.33778,1989.1,1989.0,1.00591]
[1742477872170,1.00591,1989.0,1988.9,2.34292]
[1742477872369,2.3378,1989.1,1989.0,1.00591]
[1742477872569,2.3378,1989.1,1989.0,2.34291]
[1742477872872,4.48184,1989.2,1989.1,1.00586]
[1742477873076,1.00584,1989.2,1989.1,1.00586]
[1742477873274,1.00586,1989.1,1989.0,2.34288]
[1742477873476,5.1923,1989.3,1989.1,1.00584]
[1742477873477,1.00584,1989.2,1989.1,1.00584]
[1742477874077,1.00586,1989.1,1989.0,2.34287]
[1742477874481,1.9845,1989.3,1989.1,1.00584]
[1742477874482,1.00584,1989.2,1989.1,1.00584]
[1742477874675,2.36944,1989.2,1989.1,1.00584]
[1742477875482,1.00586,1989.1,1989.0,2.34286]
[1742477875778,1.3636,1989.2,1989.1,1.00586]
[1742477875779,1.00583,1989.2,1989.1,1.00586]
[1742477876373,1.00586,1989.1,1989.0,2.34286]
[1742477877483,1.00586,1989.1,1989.0,1.337]
[1742477877784,1.00586,1989.1,1989.0,2.34291]
[1742477878384,1.00586,1989.1,1989.0,1.337]
[1742477880584,1.00586,1989.1,1989.0,2.34291]
[1742477880781,1.00586,1989.1,1989.0,1.337]
[1742477880982,1.00584,1989.2,1989.1,1.00583]
[1742477881584,3.022,1989.3,1989.2,1.00581]
[1742477882474,1.00565,1989.6,1989.5,1.00563]
[1742477882780,1.01311464,1989.7,1989.6,1.0056]
[1742477882978,0.00752464,1989.7,1989.6,4.2134]
[1742477883180,2.51338,1990.2,1989.9,1.00545]
[1742477883181,9.428,1990.2,1989.9,1.00545]
[1742477883381,1.00535,1990.1,1990.0,1.3591]
[1742477883776,1.0055,1989.8,1989.7,1.68034]
[1742477883995,1.0055,1989.8,1989.7,0.6748]
[1742477884286,1.0055,1989.8,1989.7,1.68035]
[1742477884479,0.00752464,1989.9,1989.8,1.00548]
[1742477885184,0.00752464,1989.9,1989.8,2.36458]
[1742477885488,0.00752464,1989.9,1989.8,48.83158]
[1742477887284,2.0963,1990.4,1989.8,52.8398]
[1742477887484,1.00529,1990.3,1990.0,3.2078]
[1742477887786,2.41009,1990.3,1990.2,1.00529]
[1742477888290,1.69672,1990.4,1990.3,1.00525]
[1742477888488,0.00752464,1990.4,1990.3,1.00525]
[1742477888684,0.00752464,1990.4,1990.3,2.31715]
[1742477890990,0.669,1990.9,1990.3,3.8119]
[1742477891184,3.2078,1991.2,1990.7,3.2078]
[1742477891384,1.00495,1990.9,1990.8,3.03425]
[1742477891585,1.00495,1990.9,1990.8,2.0293]
[1742477891788,1.00492,1991.0,1990.8,2.0293]
[1742477891982,1.00492,1991.0,1990.9,1.3199]
[1742477892189,1.00492,1991.0,1990.9,2.32485]
[1742477892390,1.00492,1991.0,1990.9,1.3199]
[1742477892587,2.33080464,1991.1,1990.9,1.3199]
[1742477892885,1.0049,1991.0,1990.9,2.32482]
[1742477893090,1.32592464,1991.1,1991.0,1.0049]
[1742477893091,0.00752464,1991.1,1991.0,1.0049]
[1742477893392,0.00752464,1991.1,1991.0,2.3106]
[1742477893693,4.21243,1991.6,1991.4,1.00468]
[1742477893893,1.00463,1991.6,1991.5,1.3057]
[1742477895487,1.00476,1991.3,1991.2,1.00479]
[1742477895688,1.0048,1991.2,1991.1,3.462]
[1742477895894,1.0049,1991.0,1990.9,4.4983]
[1742477896086,1.0049,1991.0,1990.9,1.2905]
[1742477896792,1.00488,1991.1,1991.0,1.0049]
[1742477896996,2.37382,1991.2,1991.0,1.0049]
[1742477897692,2.37381,1991.2,1991.1,1.00485]
[1742477898094,1.00487,1991.1,1991.0,1.00488]
[1742477899297,1.0049,1991.0,1990.9,1.2905]
[1742477899498,1.00495,1990.9,1990.8,1.00497]
[1742477899795,1.005,1990.8,1990.7,5.59263464]
[1742477900984,1.005,1990.8,1990.7,4.22033464]
[1742477901296,1.005,1990.8,1990.7,1.01257464]
[1742477901493,1.00497,1990.9,1990.8,1.00496]
[1742477901698,1.00497,1990.9,1990.8,2.39426]
[1742477902698,1.00497,1990.9,1990.8,1.3893]
[1742477903193,1.005,1990.8,1990.7,0.00752464]
[1742477903392,1.7156,1990.8,1990.7,0.00752464]
[1742477903993,1.7156,1990.8,1990.7,1.01257464]
[1742477904200,1.005,1990.8,1990.7,1.39682464]
[1742477904396,1.005,1990.8,1990.7,2.40187464]
[1742477904799,1.005,1990.8,1990.7,1.39682464]
[1742477904993,6.6706,1991.0,1990.7,1.39682464]
[1742477905189,7.67553,1991.0,1990.9,1.00495]
[1742477905591,1.00488,1991.1,1991.0,1.0049]
[1742477905895,0.668,1991.2,1991.1,1.00485]
[1742477906095,1.67838,1991.5,1991.1,3.878]
[1742477906289,1.70293,1991.6,1991.5,1.00464]
[1742477906505,0.6983,1991.6,1991.5,1.00464]
[1742477906695,1.70289,1991.6,1991.5,1.00464]
[1742477907399,0.00752464,1991.7,1991.6,1.00459]
[1742477908404,0.00752464,1991.7,1991.6,1.65229]
[1742477908805,1.00441,1992.0,1991.9,1.00441]
[1742477909101,1.00436,1992.1,1992.0,1.00436]
[1742477909404,2.34663,1992.2,1992.1,1.00434]
[1742477909594,1.3423,1992.2,1992.1,1.00434]
[1742477909992,0.6686,1992.2,1992.1,1.00434]
[1742477910198,0.00752464,1992.3,1992.0,0.00752464]
[1742477910496,0.00752464,1992.3,1992.0,1.30072464]
[1742477910690,1.00434,1992.1,1992.0,2.30508464]
[1742477911096,4.60512464,1992.3,1992.0,2.30507464]
[1742477911296,4.60512464,1992.3,1992.1,1.00433]
[1742477911702,4.60512464,1992.3,1992.0,1.30072464]
[1742477911901,1.00434,1992.1,1992.0,1.30072464]
[1742477912106,1.00434,1992.1,1992.0,2.30511464]
[1742477912705,1.00433,1992.2,1992.1,1.00434]
[1742477913006,1.3898,1992.2,1992.1,1.00434]
[1742477913403,1.3898,1992.2,1992.0,2.30507464]
[1742477913701,0.00752464,1992.3,1992.2,1.00429]
[1742477913911,0.00752464,1992.3,1992.2,2.38529]
[1742477914199,1.01176464,1992.3,1992.2,2.38529]
[1742477914405,0.00752464,1992.3,1992.2,2.38529]
[1742477914805,1.01176464,1992.3,1992.2,2.38529]
[1742477915000,1.00429,1992.2,1992.0,1.01187464]
[1742477915307,2.39799,1992.2,1992.1,2.38534]
[1742477915508,1.3937,1992.2,1992.1,2.38534]
[1742477915704,1.00429,1992.2,1992.1,1.381]
[1742477915899,1.3937,1992.2,1992.1,2.38533]
[1742477916100,0.00752464,1992.3,1992.2,1.00429]
[1742477916301,1.01176464,1992.3,1992.2,1.381]
[1742477916603,2.40546464,1992.3,1992.2,2.38529]
[1742477916807,1.40122464,1992.3,1992.2,2.38529]
[1742477917008,0.00752464,1992.3,1992.2,2.38529]
[1742477917306,0.00752464,1992.3,1992.2,5.83429]
[1742477917500,0.00752464,1992.3,1992.2,4.83]
[1742477917501,1.01176464,1992.3,1992.2,4.83]
[1742477917696,2.32566464,1992.3,1992.2,4.83]
[1742477917901,1.00434,1992.1,1992.0,1.01188464]
[1742477918097,1.00434,1992.1,1992.0,3.45552464]
[1742477918805,1.0043,1992.2,1992.1,1.0043]
[1742477919212,1.0043,1992.2,1992.1,1.2897]
[1742477919604,1.7113,1992.2,1992.1,1.2897]
[1742477919806,1.00434,1992.1,1992.0,0.00752464]
[1742477920004,2.30924,1992.1,1992.0,0.00752464]
[1742477923422,1.00449,1991.8,1991.7,3.2078]
[1742477923716,1.00464,1991.5,1991.4,46.407]
[1742477923921,1.00464,1991.5,1991.4,47.7985]